[Event "Late-Titled-Tuesday-Blitz-April-23-2024"]
[Site "Chess.com"]
[Date "2024.04.23"]
[Round "8"]
[White "yaguigor"]
[Black "1g60-1"]
[Result "1/2-1/2"]
[WhiteElo "2564"]
[BlackElo "2451"]
[TimeControl "180+1"]
[EndTime "15:28:20 PDT"]
[Termination "Game drawn by agreement"]

1. e4 {[%clk 0:03:00.1]} 1... e6 {[%clk 0:03:00.3]} 2. d4 {[%clk 0:02:59]} 2...
d5 {[%clk 0:03:00.5]} 3. Nc3 {[%clk 0:02:58.8]} 3... Nf6 {[%clk 0:02:58.8]} 4.
e5 {[%clk 0:02:58.1]} 4... Nfd7 {[%clk 0:02:59.1]} 5. f4 {[%clk 0:02:58.7]} 5...
c5 {[%clk 0:02:59.3]} 6. Nf3 {[%clk 0:02:59.3]} 6... Nc6 {[%clk 0:02:59.8]} 7.
Be3 {[%clk 0:02:59.7]} 7... Be7 {[%clk 0:03:00.1]} 8. Qd2 {[%clk 0:02:57.7]}
8... O-O {[%clk 0:02:59]} 9. dxc5 {[%clk 0:02:46.7]} 9... Bxc5 {[%clk
0:02:59.1]} 10. Bxc5 {[%clk 0:02:41.4]} 10... Nxc5 {[%clk 0:02:59.2]} 11. O-O-O
{[%clk 0:02:40]} 11... a6 {[%clk 0:02:52.1]} 12. Qe3 {[%clk 0:02:29]} 12... Qa5
{[%clk 0:02:36.8]} 13. Kb1 {[%clk 0:02:25.2]} 13... Bd7 {[%clk 0:02:20]} 14. f5
{[%clk 0:02:23.8]} 14... exf5 {[%clk 0:02:06.5]} 15. Rxd5 {[%clk 0:02:22.1]}
15... b6 {[%clk 0:01:59.2]} 16. Nd4 {[%clk 0:01:52.5]} 16... Nxd4 {[%clk
0:01:54.2]} 17. Qxd4 {[%clk 0:01:48.7]} 17... Be6 {[%clk 0:01:41.1]} 18. Rd6
{[%clk 0:01:29.9]} 18... Ne4 {[%clk 0:01:33.7]} 19. a3 {[%clk 0:01:20.4]} 19...
Nxd6 {[%clk 0:01:31.1]} 20. exd6 {[%clk 0:01:17]} 20... Qc5 {[%clk 0:01:22.5]}
21. Qxc5 {[%clk 0:01:16.2]} 21... bxc5 {[%clk 0:01:23.4]} 22. Be2 {[%clk
0:01:15.8]} 22... Rfd8 {[%clk 0:01:20.9]} 23. Rd1 {[%clk 0:01:15.5]} 23... Rd7
{[%clk 0:01:18]} 24. Na4 {[%clk 0:01:12.3]} 24... Rad8 {[%clk 0:01:17.1]} 25.
Nxc5 {[%clk 0:00:56.9]} 25... Rxd6 {[%clk 0:01:16.8]} 26. Rxd6 {[%clk
0:00:57.2]} 26... Rxd6 {[%clk 0:01:16.5]} 27. b4 {[%clk 0:00:57.8]} 27... Bc8
{[%clk 0:01:12]} 28. Kc1 {[%clk 0:00:54.3]} 28... g5 {[%clk 0:01:04.7]} 29. a4
{[%clk 0:00:53.5]} 29... Rd4 {[%clk 0:00:51.4]} 30. c3 {[%clk 0:00:51.8]} 30...
Rd6 {[%clk 0:00:47.7]} 31. a5 {[%clk 0:00:50.7]} 31... Kg7 {[%clk 0:00:37.8]}
1/2-1/2

[Event "Late-Titled-Tuesday-Blitz-April-23-2024"]
[Site "Chess.com"]
[Date "2024.04.23"]
[Round "8"]
[White "NovakRatko"]
[Black "manmanlai1"]
[Result "0-1"]
[WhiteElo "2377"]
[BlackElo "2523"]
[TimeControl "180+1"]
[EndTime "15:28:25 PDT"]
[Termination "manmanlai1 won on time"]

1. d4 {[%clk 0:03:00.9]} 1... Nf6 {[%clk 0:02:59.6]} 2. c4 {[%clk 0:03:00.4]}
2... c5 {[%clk 0:03:00]} 3. dxc5 {[%clk 0:03:00.1]} 3... e5 {[%clk 0:02:59.2]}
4. Be3 {[%clk 0:03:00.2]} 4... Na6 {[%clk 0:02:58.6]} 5. a3 {[%clk 0:02:59.5]}
5... Nxc5 {[%clk 0:02:55.4]} 6. b4 {[%clk 0:02:58.5]} 6... Nce4 {[%clk
0:02:54.8]} 7. f3 {[%clk 0:02:57.4]} 7... Nd6 {[%clk 0:02:46.1]} 8. c5 {[%clk
0:02:56.7]} 8... Nf5 {[%clk 0:02:46.2]} 9. Bf2 {[%clk 0:02:56.8]} 9... d5 {[%clk
0:02:36.6]} 10. cxd6 {[%clk 0:02:52.9]} 10... e4 {[%clk 0:02:35]} 11. g4 {[%clk
0:02:46.7]} 11... Nxd6 {[%clk 0:02:32.4]} 12. g5 {[%clk 0:02:37.4]} 12... Nd7
{[%clk 0:02:23.8]} 13. h4 {[%clk 0:02:33.8]} 13... Be7 {[%clk 0:02:23.1]} 14.
Nc3 {[%clk 0:02:31.7]} 14... O-O {[%clk 0:02:17.4]} 15. fxe4 {[%clk 0:02:22.7]}
15... Re8 {[%clk 0:02:12.4]} 16. Bg3 {[%clk 0:02:19.4]} 16... Nb6 {[%clk
0:02:07.2]} 17. Qd4 {[%clk 0:01:57.2]} 17... Be6 {[%clk 0:01:58.5]} 18. Rd1
{[%clk 0:01:51.4]} 18... Ndc4 {[%clk 0:01:45.8]} 19. Nb5 {[%clk 0:01:00.7]}
19... Qxd4 {[%clk 0:01:27.6]} 20. Rxd4 {[%clk 0:00:59.7]} 20... Red8 {[%clk
0:01:26.5]} 21. Rxd8+ {[%clk 0:00:46.4]} 21... Rxd8 {[%clk 0:01:27.4]} 22. Nxa7
{[%clk 0:00:35.9]} 22... Nxa3 {[%clk 0:01:21.3]} 23. Bc7 {[%clk 0:00:29.8]}
23... Bxb4+ {[%clk 0:01:21.6]} 24. Kf2 {[%clk 0:00:29.4]} 24... Bc5+ {[%clk
0:01:22.1]} 25. Kg3 {[%clk 0:00:24.5]} 25... Ra8 {[%clk 0:01:22.5]} 26. Bg2
{[%clk 0:00:02.4]} 26... Rxa7 {[%clk 0:01:20.9]} 27. Nf3 {[%clk 0:00:02.8]}
27... Nac4 {[%clk 0:01:15.7]} 28. Rc1 {[%clk 0:00:01.5]} 28... Ra8 {[%clk
0:01:11.1]} 0-1

[Event "Late-Titled-Tuesday-Blitz-April-23-2024"]
[Site "Chess.com"]
[Date "2024.04.23"]
[Round "8"]
[White "Valiyev_Shahin"]
[Black "js20000"]
[Result "1-0"]
[WhiteElo "2571"]
[BlackElo "2732"]
[TimeControl "180+1"]
[EndTime "15:28:31 PDT"]
[Termination "Valiyev_Shahin won by resignation"]

1. e4 {[%clk 0:03:00.9]} 1... g6 {[%clk 0:02:59.9]} 2. d4 {[%clk 0:03:00.7]}
2... Bg7 {[%clk 0:03:00.4]} 3. Nc3 {[%clk 0:03:01.4]} 3... d6 {[%clk 0:03:00.2]}
4. Be3 {[%clk 0:03:02.1]} 4... a6 {[%clk 0:02:59.1]} 5. Qd2 {[%clk 0:03:02.1]}
5... b5 {[%clk 0:02:57.8]} 6. h4 {[%clk 0:03:02.7]} 6... b4 {[%clk 0:02:56.9]}
7. Nce2 {[%clk 0:03:02.4]} 7... Nf6 {[%clk 0:02:55.9]} 8. f3 {[%clk 0:03:02.2]}
8... a5 {[%clk 0:02:54.6]} 9. Nh3 {[%clk 0:02:55.4]} 9... Nc6 {[%clk 0:02:36.4]}
10. Bh6 {[%clk 0:02:44.7]} 10... Bxh6 {[%clk 0:02:34.7]} 11. Qxh6 {[%clk
0:02:45.6]} 11... Ba6 {[%clk 0:02:26.4]} 12. Rd1 {[%clk 0:02:41.1]} 12... Qb8
{[%clk 0:02:15.3]} 13. Ng5 {[%clk 0:02:39]} 13... Qb6 {[%clk 0:02:12.8]} 14. Qg7
{[%clk 0:02:27.2]} 14... Rf8 {[%clk 0:02:10.2]} 15. Nxh7 {[%clk 0:02:24.3]}
15... Nxh7 {[%clk 0:02:07.4]} 16. Qxh7 {[%clk 0:02:25.2]} 16... Bxe2 {[%clk
0:02:05.2]} 17. Bxe2 {[%clk 0:02:26.1]} 17... Nxd4 {[%clk 0:02:05.3]} 18. Rd2
{[%clk 0:01:59.6]} 18... O-O-O {[%clk 0:02:01.3]} 19. h5 {[%clk 0:01:36.8]}
19... g5 {[%clk 0:01:55.8]} 20. c3 {[%clk 0:01:06.3]} 20... Ne6 {[%clk
0:01:54.9]} 21. Qf5 {[%clk 0:01:03.8]} 21... c6 {[%clk 0:01:14.5]} 22. h6 {[%clk
0:01:01.9]} 22... Kc7 {[%clk 0:01:12.7]} 23. h7 {[%clk 0:01:00.1]} 23... Nf4
{[%clk 0:01:12.8]} 24. Qxg5 {[%clk 0:00:56.3]} 24... e5 {[%clk 0:01:11.5]} 25.
Qe7+ {[%clk 0:00:42.7]} 25... Kc8 {[%clk 0:01:08.3]} 26. Rxd6 {[%clk 0:00:38.8]}
26... bxc3 {[%clk 0:01:03.3]} 27. Rxd8+ {[%clk 0:00:35.3]} 27... Rxd8 {[%clk
0:00:56.6]} 28. Qxd8+ {[%clk 0:00:18.9]} 28... Qxd8 {[%clk 0:00:55.9]} 29. h8=Q
{[%clk 0:00:19.5]} 29... cxb2 {[%clk 0:00:55.9]} 30. Qxd8+ {[%clk 0:00:19.3]}
30... Kxd8 {[%clk 0:00:54.9]} 31. Kf2 {[%clk 0:00:20]} 1-0

[Event "Late-Titled-Tuesday-Blitz-April-23-2024"]
[Site "Chess.com"]
[Date "2024.04.23"]
[Round "8"]
[White "2Coaches1Profile"]
[Black "CaspiIsrael"]
[Result "0-1"]
[WhiteElo "2552"]
[BlackElo "2703"]
[TimeControl "180+1"]
[EndTime "15:28:31 PDT"]
[Termination "CaspiIsrael won by resignation"]

1. e4 {[%clk 0:03:00.9]} 1... d5 {[%clk 0:02:58.7]} 2. exd5 {[%clk 0:02:58.4]}
2... Qxd5 {[%clk 0:02:59.6]} 3. Nc3 {[%clk 0:02:58.5]} 3... Qd6 {[%clk
0:03:00.2]} 4. Nf3 {[%clk 0:02:58.2]} 4... Nf6 {[%clk 0:03:00.8]} 5. g3 {[%clk
0:02:57.7]} 5... Nc6 {[%clk 0:03:00.4]} 6. Bg2 {[%clk 0:02:58.1]} 6... Bf5
{[%clk 0:03:00.8]} 7. O-O {[%clk 0:02:58.5]} 7... O-O-O {[%clk 0:03:00.3]} 8. d4
{[%clk 0:02:23]} 8... e6 {[%clk 0:02:52.6]} 9. Bf4 {[%clk 0:02:19.7]} 9... Qb4
{[%clk 0:02:52.3]} 10. Qc1 {[%clk 0:01:39.4]} 10... Nxd4 {[%clk 0:02:40.9]} 11.
Nxd4 {[%clk 0:01:24.7]} 11... Qxd4 {[%clk 0:02:30.4]} 12. Bxc7 {[%clk
0:01:15.6]} 12... Rd7 {[%clk 0:02:28.4]} 13. Bf4 {[%clk 0:01:08.2]} 13... Bc5
{[%clk 0:02:27.2]} 14. Be3 {[%clk 0:00:50.8]} 14... Qc4 {[%clk 0:02:23.9]} 15.
Re1 {[%clk 0:00:46.8]} 15... Rhd8 {[%clk 0:02:18.4]} 16. Bf1 {[%clk 0:00:42.7]}
16... Qb4 {[%clk 0:02:15.8]} 17. a3 {[%clk 0:00:39.5]} 17... Bxe3 {[%clk
0:02:15.4]} 18. Qxe3 {[%clk 0:00:40.4]} 18... Qd4 {[%clk 0:02:15.3]} 19. Qxd4
{[%clk 0:00:35.9]} 19... Rxd4 {[%clk 0:02:16.2]} 20. Nb5 {[%clk 0:00:36.4]}
20... Rd2 {[%clk 0:02:13.9]} 21. Nxa7+ {[%clk 0:00:31.8]} 21... Kb8 {[%clk
0:02:11.7]} 22. Nb5 {[%clk 0:00:32.3]} 22... Rxc2 {[%clk 0:02:11.4]} 23. Red1
{[%clk 0:00:19.9]} 23... Nd5 {[%clk 0:02:04.9]} 24. b4 {[%clk 0:00:18.3]} 24...
Bg4 {[%clk 0:01:52.3]} 25. Rd4 {[%clk 0:00:16.1]} 25... Be2 {[%clk 0:01:50.2]}
26. Bxe2 {[%clk 0:00:15.4]} 26... Rxe2 {[%clk 0:01:51.1]} 27. Rad1 {[%clk
0:00:15.6]} 27... Rc8 {[%clk 0:01:47.9]} 28. R4d2 {[%clk 0:00:15.2]} 28... Rc2
{[%clk 0:01:44]} 29. Rxe2 {[%clk 0:00:14.4]} 29... Rxe2 {[%clk 0:01:43.9]} 30.
Rc1 {[%clk 0:00:14.4]} 30... f6 {[%clk 0:01:23.6]} 31. Nd6 {[%clk 0:00:10.4]}
31... Ne7 {[%clk 0:01:23.7]} 32. Ne8 {[%clk 0:00:06.1]} 32... Nf5 {[%clk
0:01:21.2]} 33. g4 {[%clk 0:00:06]} 33... Nd4 {[%clk 0:01:19.2]} 34. Nxg7 {[%clk
0:00:06.2]} 34... Re4 {[%clk 0:01:19.1]} 35. Rc5 {[%clk 0:00:03.8]} 35... Rxg4+
{[%clk 0:01:18.4]} 36. Kf1 {[%clk 0:00:04.4]} 36... Rxg7 {[%clk 0:01:18.6]} 0-1

[Event "Late-Titled-Tuesday-Blitz-April-23-2024"]
[Site "Chess.com"]
[Date "2024.04.23"]
[Round "8"]
[White "alexrustemov"]
[Black "BabageldiAnnaberdiyev"]
[Result "1-0"]
[WhiteElo "2848"]
[BlackElo "2605"]
[TimeControl "180+1"]
[EndTime "15:28:40 PDT"]
[Termination "alexrustemov won by checkmate"]

1. d4 {[%clk 0:03:00.9]} 1... Nf6 {[%clk 0:02:58.9]} 2. c4 {[%clk 0:03:01.5]}
2... g6 {[%clk 0:02:58.4]} 3. g3 {[%clk 0:03:02]} 3... Bg7 {[%clk 0:02:58.7]} 4.
Bg2 {[%clk 0:03:02.6]} 4... O-O {[%clk 0:02:59.4]} 5. Nc3 {[%clk 0:03:03]} 5...
d6 {[%clk 0:03:00]} 6. e4 {[%clk 0:03:03.1]} 6... Nc6 {[%clk 0:03:00.7]} 7. Nge2
{[%clk 0:02:59.4]} 7... e5 {[%clk 0:02:59.8]} 8. d5 {[%clk 0:02:58.7]} 8... Ne7
{[%clk 0:03:00]} 9. h3 {[%clk 0:02:54.9]} 9... Ne8 {[%clk 0:02:59.6]} 10. g4
{[%clk 0:02:53.2]} 10... f5 {[%clk 0:02:58.6]} 11. exf5 {[%clk 0:02:53]} 11...
gxf5 {[%clk 0:02:59.5]} 12. Ng3 {[%clk 0:02:53.3]} 12... Ng6 {[%clk 0:02:50.1]}
13. gxf5 {[%clk 0:02:43.6]} 13... Bxf5 {[%clk 0:02:49.6]} 14. Nxf5 {[%clk
0:02:41.1]} 14... Rxf5 {[%clk 0:02:50.5]} 15. Be4 {[%clk 0:02:41.4]} 15... Qf6
{[%clk 0:02:39.9]} 16. Bxf5 {[%clk 0:02:34.4]} 16... Qxf5 {[%clk 0:02:40.8]} 17.
Be3 {[%clk 0:02:30.2]} 17... Nf6 {[%clk 0:02:38.9]} 18. Qe2 {[%clk 0:02:24.8]}
18... a6 {[%clk 0:02:37.5]} 19. O-O-O {[%clk 0:02:21.6]} 19... b5 {[%clk
0:02:37.4]} 20. cxb5 {[%clk 0:02:14.6]} 20... axb5 {[%clk 0:02:38.3]} 21. Qxb5
{[%clk 0:02:14.3]} 21... Nf4 {[%clk 0:02:34]} 22. Rhg1 {[%clk 0:02:10.4]} 22...
N6h5 {[%clk 0:02:25.4]} 23. Rg4 {[%clk 0:01:59.8]} 23... Kh8 {[%clk 0:02:25.1]}
24. Rdg1 {[%clk 0:01:56.8]} 24... Bh6 {[%clk 0:02:23]} 25. Kd2 {[%clk
0:01:38.2]} 25... Rf8 {[%clk 0:02:19.8]} 26. Qc4 {[%clk 0:01:35.1]} 26... Nf6
{[%clk 0:02:12]} 27. f3 {[%clk 0:01:23.4]} 27... Nxg4 {[%clk 0:02:08.1]} 28.
hxg4 {[%clk 0:01:24.3]} 28... Qf7 {[%clk 0:02:04]} 29. Rh1 {[%clk 0:01:19.5]}
29... Bg5 {[%clk 0:02:03]} 30. Qe4 {[%clk 0:01:18.7]} 30... h6 {[%clk
0:02:01.5]} 31. Kc2 {[%clk 0:01:17.9]} 31... Rb8 {[%clk 0:01:54.4]} 32. a4
{[%clk 0:01:11]} 32... Kg7 {[%clk 0:01:54.4]} 33. Bxf4 {[%clk 0:01:09.7]} 33...
exf4 {[%clk 0:01:49.6]} 34. Re1 {[%clk 0:01:07.8]} 34... Bf6 {[%clk 0:01:49]}
35. Qe6 {[%clk 0:01:05.7]} 35... Qg6+ {[%clk 0:01:48.9]} 36. Re4 {[%clk
0:01:05.5]} 36... Qg5 {[%clk 0:01:44.2]} 37. Qd7+ {[%clk 0:01:03.1]} 37... Kg6
{[%clk 0:01:44.7]} 38. Qxc7 {[%clk 0:01:02.9]} 38... Ra8 {[%clk 0:01:40.2]} 39.
Qxd6 {[%clk 0:01:01.6]} 39... Qh4 {[%clk 0:01:40.7]} 40. Re6 {[%clk 0:00:59.9]}
40... Qf2+ {[%clk 0:01:36.2]} 41. Kb3 {[%clk 0:00:58.7]} 41... Qd4 {[%clk
0:01:34.4]} 42. Qb6 {[%clk 0:00:47]} 42... Kg5 {[%clk 0:00:52.4]} 43. Qxd4
{[%clk 0:00:45.3]} 43... Bxd4 {[%clk 0:00:53.3]} 44. Ne4+ {[%clk 0:00:42.2]}
44... Kh4 {[%clk 0:00:51.6]} 45. Rxh6# {[%clk 0:00:41.8]} 1-0

[Event "Late-Titled-Tuesday-Blitz-April-23-2024"]
[Site "Chess.com"]
[Date "2024.04.23"]
[Round "8"]
[White "LUISMIGUELOV"]
[Black "traack"]
[Result "0-1"]
[WhiteElo "2229"]
[BlackElo "2459"]
[TimeControl "180+1"]
[EndTime "15:28:45 PDT"]
[Termination "traack won on time"]

1. d4 {[%clk 0:03:00.9]} 1... Nf6 {[%clk 0:02:59.3]} 2. c3 {[%clk 0:03:01.1]}
2... g6 {[%clk 0:02:58.5]} 3. Bg5 {[%clk 0:03:01.3]} 3... Bg7 {[%clk 0:02:58.4]}
4. Nd2 {[%clk 0:03:00.5]} 4... d5 {[%clk 0:02:57.1]} 5. Qc1 {[%clk 0:03:00]}
5... O-O {[%clk 0:02:56.9]} 6. Ngf3 {[%clk 0:02:58.7]} 6... h6 {[%clk 0:02:50]}
7. Bf4 {[%clk 0:02:57.3]} 7... Nh5 {[%clk 0:02:48.6]} 8. Be3 {[%clk 0:02:54.8]}
8... f5 {[%clk 0:02:48.3]} 9. g3 {[%clk 0:02:45]} 9... f4 {[%clk 0:02:46.7]} 10.
gxf4 {[%clk 0:02:44.4]} 10... Nxf4 {[%clk 0:02:47.6]} 11. Nb3 {[%clk 0:02:30.9]}
11... Qd6 {[%clk 0:02:45.1]} 12. Bxf4 {[%clk 0:02:10.2]} 12... Rxf4 {[%clk
0:02:41.9]} 13. Bg2 {[%clk 0:02:04.5]} 13... Nc6 {[%clk 0:02:29]} 14. Ne5 {[%clk
0:01:55]} 14... Nxe5 {[%clk 0:02:25.6]} 15. dxe5 {[%clk 0:01:55]} 15... Qxe5
{[%clk 0:02:26.5]} 16. Qd2 {[%clk 0:01:33.8]} 16... c6 {[%clk 0:02:24.2]} 17. e3
{[%clk 0:01:33.3]} 17... Bg4 {[%clk 0:02:20.1]} 18. Nd4 {[%clk 0:01:20]} 18...
Raf8 {[%clk 0:02:15.2]} 19. f3 {[%clk 0:01:17.2]} 19... Bxf3 {[%clk 0:02:12.5]}
20. Bxf3 {[%clk 0:01:16.8]} 20... Rxf3 {[%clk 0:02:12.1]} 21. Nxf3 {[%clk
0:01:16]} 21... Rxf3 {[%clk 0:02:13]} 22. O-O-O {[%clk 0:01:14.7]} 22... Qxe3
{[%clk 0:01:53.4]} 23. Qxe3 {[%clk 0:01:11.9]} 23... Rxe3 {[%clk 0:01:54.3]} 24.
Rde1 {[%clk 0:01:11.4]} 24... Rxe1+ {[%clk 0:01:51.7]} 25. Rxe1 {[%clk
0:01:11.2]} 25... e5 {[%clk 0:01:52.3]} 26. Kc2 {[%clk 0:01:07.8]} 26... Kf7
{[%clk 0:01:48.1]} 27. Rf1+ {[%clk 0:01:05.8]} 27... Ke6 {[%clk 0:01:48.4]} 28.
h3 {[%clk 0:01:01.9]} 28... g5 {[%clk 0:01:47.9]} 29. b3 {[%clk 0:01:00.3]}
29... e4 {[%clk 0:01:47.7]} 30. a4 {[%clk 0:00:57.1]} 30... h5 {[%clk
0:01:47.7]} 31. Rg1 {[%clk 0:00:45.8]} 31... Bf6 {[%clk 0:01:46.3]} 32. Rf1
{[%clk 0:00:42.2]} 32... g4 {[%clk 0:01:45.1]} 33. hxg4 {[%clk 0:00:41.6]} 33...
hxg4 {[%clk 0:01:46]} 34. Rg1 {[%clk 0:00:40.3]} 34... Kf5 {[%clk 0:01:46.5]}
35. Kd2 {[%clk 0:00:33.2]} 35... c5 {[%clk 0:01:42.9]} 36. b4 {[%clk 0:00:32.1]}
36... b6 {[%clk 0:01:42.5]} 37. a5 {[%clk 0:00:30.7]} 37... d4 {[%clk
0:01:42.1]} 38. bxc5 {[%clk 0:00:24.3]} 38... bxc5 {[%clk 0:01:29.8]} 39. cxd4
{[%clk 0:00:23.2]} 39... cxd4 {[%clk 0:01:29.3]} 40. Rb1 {[%clk 0:00:16.6]}
40... g3 {[%clk 0:01:25.5]} 41. a6 {[%clk 0:00:04.2]} 41... Bg5+ {[%clk
0:01:21.5]} 42. Ke2 {[%clk 0:00:03.8]} 42... Be3 {[%clk 0:01:22.4]} 0-1

[Event "Late-Titled-Tuesday-Blitz-April-23-2024"]
[Site "Chess.com"]
[Date "2024.04.23"]
[Round "8"]
[White "ozates"]
[Black "Korchmar_Vasiliy"]
[Result "0-1"]
[WhiteElo "2556"]
[BlackElo "2705"]
[TimeControl "180+1"]
[EndTime "15:28:49 PDT"]
[Termination "Korchmar_Vasiliy won by resignation"]

1. e4 {[%clk 0:03:00.9]} 1... e6 {[%clk 0:02:59.8]} 2. d4 {[%clk 0:03:00.8]}
2... d5 {[%clk 0:02:59.5]} 3. Nd2 {[%clk 0:02:59]} 3... c5 {[%clk 0:02:59.1]} 4.
exd5 {[%clk 0:02:57.7]} 4... exd5 {[%clk 0:02:59.4]} 5. Ngf3 {[%clk 0:02:57.2]}
5... Nc6 {[%clk 0:02:59.3]} 6. Be2 {[%clk 0:02:57.9]} 6... Nf6 {[%clk
0:02:56.3]} 7. O-O {[%clk 0:02:58.5]} 7... Bd6 {[%clk 0:02:55.4]} 8. dxc5 {[%clk
0:02:58.3]} 8... Bxc5 {[%clk 0:02:56.3]} 9. Nb3 {[%clk 0:02:56.9]} 9... Bb6
{[%clk 0:02:56.7]} 10. Bf4 {[%clk 0:02:54.4]} 10... O-O {[%clk 0:02:56.6]} 11.
c4 {[%clk 0:02:50.5]} 11... Bg4 {[%clk 0:02:41.9]} 12. c5 {[%clk 0:02:48.8]}
12... Bc7 {[%clk 0:02:39.2]} 13. Bxc7 {[%clk 0:02:49.2]} 13... Qxc7 {[%clk
0:02:40.1]} 14. Nbd4 {[%clk 0:02:48.4]} 14... Nxd4 {[%clk 0:02:22]} 15. Qxd4
{[%clk 0:02:42.4]} 15... Rfe8 {[%clk 0:02:22.6]} 16. Rfe1 {[%clk 0:02:27.3]}
16... Re4 {[%clk 0:02:22.3]} 17. Qc3 {[%clk 0:02:25]} 17... Bxf3 {[%clk
0:02:12.2]} 18. Bxf3 {[%clk 0:02:17.8]} 18... Rc4 {[%clk 0:02:12.4]} 19. Qe3
{[%clk 0:02:07.3]} 19... Rxc5 {[%clk 0:02:09.4]} 20. Rad1 {[%clk 0:02:06.6]}
20... Rd8 {[%clk 0:02:01.1]} 21. g3 {[%clk 0:02:03.3]} 21... g6 {[%clk
0:02:00.1]} 22. Qd4 {[%clk 0:02:02.1]} 22... Qb6 {[%clk 0:01:40.6]} 23. Re7
{[%clk 0:01:47.8]} 23... Rc6 {[%clk 0:01:32.7]} 24. Qd2 {[%clk 0:01:33.3]} 24...
Re6 {[%clk 0:01:23.9]} 25. Rxe6 {[%clk 0:01:27.3]} 25... Qxe6 {[%clk 0:01:24.8]}
26. Re1 {[%clk 0:01:24.4]} 26... Qd6 {[%clk 0:01:24.9]} 27. Qd4 {[%clk
0:01:23.4]} 27... Qb6 {[%clk 0:01:22.9]} 28. Qd2 {[%clk 0:01:10.9]} 28... d4
{[%clk 0:01:20.3]} 29. Re7 {[%clk 0:01:10.5]} 29... Rd7 {[%clk 0:01:17.2]} 30.
Re5 {[%clk 0:01:03.6]} 30... Kg7 {[%clk 0:01:15.8]} 31. h4 {[%clk 0:01:02.7]}
31... h5 {[%clk 0:01:14.2]} 32. b4 {[%clk 0:00:45.3]} 32... d3 {[%clk
0:01:13.9]} 33. a4 {[%clk 0:00:42.1]} 33... Qd4 {[%clk 0:01:12.5]} 34. Rc5
{[%clk 0:00:32.3]} 34... b6 {[%clk 0:01:11]} 35. Rc6 {[%clk 0:00:26.2]} 35...
Ng4 {[%clk 0:01:09]} 36. a5 {[%clk 0:00:17.7]} 36... Ne5 {[%clk 0:01:04.5]} 37.
Qd1 {[%clk 0:00:08.9]} 37... Nxc6 {[%clk 0:01:02.3]} 38. Bxc6 {[%clk 0:00:08.6]}
38... Rd6 {[%clk 0:01:02.9]} 0-1

[Event "Late-Titled-Tuesday-Blitz-April-23-2024"]
[Site "Chess.com"]
[Date "2024.04.23"]
[Round "8"]
[White "Hakiki_satranc"]
[Black "Godzillator"]
[Result "1-0"]
[WhiteElo "2415"]
[BlackElo "2362"]
[TimeControl "180+1"]
[EndTime "15:28:49 PDT"]
[Termination "Hakiki_satranc won by resignation"]

1. e4 {[%clk 0:03:00.9]} 1... d5 {[%clk 0:02:59.8]} 2. exd5 {[%clk 0:03:00.5]}
2... Qxd5 {[%clk 0:03:00.7]} 3. Nc3 {[%clk 0:03:00.7]} 3... Qd8 {[%clk
0:03:00.8]} 4. d4 {[%clk 0:03:01.2]} 4... c6 {[%clk 0:03:00.9]} 5. Bf4 {[%clk
0:03:01.6]} 5... Nf6 {[%clk 0:03:01.1]} 6. Qd2 {[%clk 0:03:01.5]} 6... Bg4
{[%clk 0:03:00.9]} 7. h3 {[%clk 0:02:59.7]} 7... Bh5 {[%clk 0:03:01]} 8. Bc4
{[%clk 0:02:52.2]} 8... e6 {[%clk 0:03:00.1]} 9. Nge2 {[%clk 0:02:47.1]} 9...
Bb4 {[%clk 0:02:59.6]} 10. a3 {[%clk 0:02:44.7]} 10... Ba5 {[%clk 0:02:50.9]}
11. O-O-O {[%clk 0:02:26.7]} 11... Ne4 {[%clk 0:01:48.8]} 12. Qe3 {[%clk
0:01:53.4]} 12... Nxc3 {[%clk 0:01:48.1]} 13. Nxc3 {[%clk 0:01:41.8]} 13... Bxd1
{[%clk 0:01:46.8]} 14. Rxd1 {[%clk 0:01:42.7]} 14... O-O {[%clk 0:01:38.7]} 15.
Ne4 {[%clk 0:01:40.2]} 15... Bc7 {[%clk 0:01:30.1]} 16. Bg5 {[%clk 0:01:32.3]}
16... Qe8 {[%clk 0:01:23.6]} 17. Nf6+ {[%clk 0:01:29.9]} 17... Kh8 {[%clk
0:00:45.2]} 18. Nxe8 {[%clk 0:01:27.4]} 18... Rxe8 {[%clk 0:00:46.1]} 19. Bf4
{[%clk 0:01:22.4]} 19... Bxf4 {[%clk 0:00:41.4]} 20. Qxf4 {[%clk 0:01:23.3]}
20... Re7 {[%clk 0:00:38.9]} 21. Qd6 {[%clk 0:01:20.8]} 21... Re8 {[%clk
0:00:36.6]} 22. Qc7 {[%clk 0:01:17]} 22... b5 {[%clk 0:00:33]} 23. Qxf7 {[%clk
0:01:11.5]} 23... Na6 {[%clk 0:00:31.6]} 24. Bxe6 {[%clk 0:01:06.9]} 24... Rf8
{[%clk 0:00:27.5]} 25. Qb7 {[%clk 0:01:06.4]} 25... Rae8 {[%clk 0:00:21.1]} 26.
Bf7 {[%clk 0:01:01.4]} 26... Rd8 {[%clk 0:00:19.7]} 27. Qxa6 {[%clk 0:00:54.8]}
27... Rxf7 {[%clk 0:00:19.1]} 28. Qxc6 {[%clk 0:00:54.1]} 28... Rxf2 {[%clk
0:00:18.4]} 29. Re1 {[%clk 0:00:54.1]} 29... Rff8 {[%clk 0:00:16.7]} 30. d5
{[%clk 0:00:51.2]} 30... h6 {[%clk 0:00:16.3]} 31. d6 {[%clk 0:00:50.9]} 31...
b4 {[%clk 0:00:15.5]} 32. d7 {[%clk 0:00:49.8]} 1-0